fUSD/lending_fUSD_20250716
["ID","MTS","AMOUNT","RATE_DAILY","PERIOD"]
[372523466,1752670262391,-539.06,0.00022054,2]
[372523467,1752670262400,-1098.13,0.00022054,2]
[372523468,1752670262410,-1438.28,0.00022054,2]
[372523469,1752670262421,-460.0,0.00022054,2]
[372523470,1752670262431,-1298.44,0.00022054,2]
[372523471,1752670262441,-460.0,0.00022054,2]
[372523472,1752670262452,-460.0,0.00022054,2]
[372523473,1752670262462,-460.0,0.00022054,2]
[372523474,1752670262472,-460.0,0.00022054,2]
[372523475,1752670262481,-460.0,0.00022054,2]
[372523476,1752670262492,-1111.67,0.00022054,2]
[372523477,1752670262502,-1040.83,0.00022054,2]
[372523478,1752670262512,-471.09,0.00022054,2]
[372523479,1752670262521,-470.71,0.00022054,2]
[372523480,1752670262659,-460.0,0.00022054,2]
[372523481,1752670262669,-599.73,0.00022054,2]
[372523482,1752670262679,-380.56514292,0.00022054,2]
[372523483,1752670262689,-460.0,0.00022054,2]
[372523484,1752670262699,-2017.05,0.00022054,2]
[372523485,1752670262709,-652.27,0.00022054,2]
[372523486,1752670262719,-460.0,0.00022054,2]
[372523487,1752670262729,-460.0,0.00022054,2]
[372523488,1752670262739,-151.0,0.00022054,7]
[372523489,1752670262749,-779.88,0.00022054,2]
[372523490,1752670262761,-1346.9,0.00022054,2]
[372523491,1752670262771,-460.0,0.00022054,2]
[372523492,1752670262783,-460.0,0.00022054,2]
[372523493,1752670262793,-609.21,0.00022054,2]
[372523494,1752670262803,-460.0,0.00022054,2]
[372523495,1752670262812,-151.0,0.00022054,7]
[372523496,1752670262822,-151.0,0.00022054,7]
[372523497,1752670262831,-460.0,0.00022054,2]
[372523498,1752670262840,-460.0,0.00022054,2]
[372523499,1752670262851,-648.88,0.00022054,2]
[372523500,1752670262861,-460.0,0.00022054,2]
[372523501,1752670262871,-460.0,0.00022054,2]
[372523502,1752670262881,-581.63,0.00022054,2]
[372523503,1752670262891,-1317.46,0.00022054,2]
[372523504,1752670262901,-460.0,0.00022054,2]
[372523505,1752670262910,-1261.82,0.00022054,2]
[372523506,1752670262922,-460.0,0.00022054,2]
[372523507,1752670262933,-645.85,0.00022054,2]
[372523508,1752670262942,-574.24,0.00022054,2]
[372523509,1752670262953,-460.0,0.00022054,2]
[372523510,1752670262962,-460.0,0.00022054,2]
[372523511,1752670262972,-460.0,0.00022054,2]
[372523512,1752670262982,-1289.05,0.00022054,2]
[372523513,1752670262992,-460.0,0.00022054,2]
[372523514,1752670263002,-460.0,0.00022054,2]
[372523515,1752670263016,-460.0,0.00022054,2]
[372523516,1752670263026,-460.0,0.00022054,2]
[372523517,1752670263037,-861.0,0.00022054,2]
[372523518,1752670263047,-1818.36,0.00022054,2]
[372523519,1752670263057,-460.0,0.00022054,2]
[372523520,1752670263068,-460.0,0.00022054,2]
[372523521,1752670263079,-460.0,0.00022054,2]
[372523522,1752670263089,-460.0,0.00022054,2]
[372523523,1752670263099,-1078.33,0.00022054,2]
[372523524,1752670263109,-624.25,0.00022054,2]
[372523525,1752670263119,-493.26,0.00022054,2]
[372523526,1752670263129,-460.0,0.00022054,2]
[372523527,1752670263139,-460.0,0.00022054,2]
[372523528,1752670263149,-197.496763,0.00022054,7]
[372523529,1752670263159,-460.0,0.00022054,2]
[372523530,1752670263169,-460.0,0.00022054,2]
[372523531,1752670263179,-460.0,0.00022054,2]
[372523532,1752670263189,-460.0,0.00022054,2]
[372523533,1752670263199,-2976.45,0.00022054,2]
[372523534,1752670263209,-832.34,0.00022054,2]
[372523535,1752670263220,-896.73,0.00022054,2]
[372523536,1752670263229,-912.11,0.00022054,2]
[372523537,1752670263239,-460.0,0.00022054,2]
[372523538,1752670263249,-460.0,0.00022054,2]
[372523539,1752670263260,-460.0,0.00022054,2]
[372523540,1752670263271,-1232.43,0.00022054,2]
[372523541,1752670263281,-460.0,0.00022054,2]
[372523542,1752670263291,-460.0,0.00022054,2]
[372523543,1752670263301,-777.88,0.00022054,2]
[372523544,1752670263311,-460.0,0.00022054,2]
[372523545,1752670263321,-460.0,0.00022054,2]
[372523546,1752670263331,-1849.48,0.00022054,2]
[372523547,1752670263341,-460.0,0.00022054,2]
[372523548,1752670263350,-460.0,0.00022054,2]
[372523549,1752670263360,-470.66,0.00022054,2]
[372523550,1752670263370,-518.79,0.00022054,2]
[372523551,1752670263380,-2581.01,0.00022054,2]
[372523552,1752670263390,-460.0,0.00022054,2]
[372523553,1752670263400,-460.0,0.00022054,2]
[372523554,1752670263410,-460.0,0.00022054,2]
[372523555,1752670263420,-460.0,0.00022054,2]
[372523556,1752670263429,-963.36,0.00022054,2]
[372523557,1752670263439,-544.49,0.00022054,2]
[372523558,1752670263449,-2484.79,0.00022054,2]
[372523559,1752670263459,-460.0,0.00022054,2]
[372523560,1752670263469,-540.0,0.00022054,2]
[372523561,1752670263479,-460.0,0.00022054,2]
[372523562,1752670263489,-460.0,0.00022054,2]
[372523563,1752670263499,-1179.62,0.00022054,2]
[372523564,1752670263510,-460.0,0.00022054,2]
[372523565,1752670263520,-460.0,0.00022054,2]
[372523566,1752670263530,-961.61,0.00022054,2]
[372523567,1752670263540,-460.0,0.00022054,2]
[372523568,1752670263554,-460.0,0.00022054,2]
[372523569,1752670263565,-460.0,0.00022054,2]
[372523570,1752670263576,-155.886565,0.00022054,7]
[372523571,1752670263586,-460.0,0.00022054,2]
[372523572,1752670263597,-155.886565,0.00022054,7]
[372523573,1752670263607,-155.886565,0.00022054,7]
[372523574,1752670263617,-460.0,0.00022054,2]
[372523575,1752670263628,-302.54774229,0.00022054,2]
[372523576,1752670263638,-460.0,0.00022054,2]
[372523577,1752670263648,-460.0,0.00022054,2]
[372523578,1752670263658,-476.59,0.00022054,2]
[372523579,1752670263668,-744.6,0.00022054,2]
[372523580,1752670263678,-659.6,0.00022054,2]
[372523581,1752670263687,-460.0,0.00022054,2]
[372523582,1752670263697,-527.58012957,0.00022054,2]
[372523583,1752670263707,-542.01,0.00022054,2]
[372523584,1752670263717,-1566.45,0.00022054,2]
[372523585,1752670263727,-460.0,0.00022054,2]
[372523586,1752670263737,-936.5,0.00022054,2]
[372523587,1752670263747,-460.0,0.00022054,2]
[372523588,1752670263758,-460.0,0.00022054,2]
[372523589,1752670263769,-460.0,0.00022054,2]
[372523590,1752670263779,-460.0,0.00022054,2]
[372523591,1752670263789,-524.81,0.00022054,2]
[372523592,1752670263800,-460.0,0.00022054,2]
[372523593,1752670263811,-1235.92,0.00022054,2]
[372523594,1752670263822,-460.0,0.00022054,2]
[372523595,1752670263832,-460.0,0.00022054,2]
[372523596,1752670263842,-460.0,0.00022054,2]
[372523597,1752670263852,-813.99,0.00022054,2]
[372523598,1752670263861,-460.0,0.00022054,2]
[372523599,1752670263871,-151.0,0.00022054,7]
[372523600,1752670263881,-168.401286,0.00022054,7]
[372523601,1752670263890,-460.0,0.00022054,2]
[372523602,1752670263900,-649.04,0.00022054,2]
[372523603,1752670263909,-460.0,0.00022054,2]
[372523604,1752670263919,-460.0,0.00022054,2]
[372523605,1752670263929,-624.42,0.00022054,2]
[372523606,1752670263939,-673.27,0.00022054,2]
[372523607,1752670263949,-460.0,0.00022054,2]
[372523608,1752670263959,-718.91,0.00022054,2]
[372523609,1752670263969,-222.846193,0.00022054,2]
[372523610,1752670263978,-1042.88,0.00022054,2]
[372523611,1752670263988,-497.16,0.00022054,2]
[372523612,1752670263998,-952.4,0.00022054,2]
[372523613,1752670264009,-460.0,0.00022054,2]
[372523614,1752670264019,-465.76,0.00022054,2]
[372523615,1752670264029,-460.0,0.00022054,2]
[372523616,1752670264039,-716.42,0.00022054,2]
[372523617,1752670264049,-967.75,0.00022054,2]
[372523618,1752670264059,-460.0,0.00022054,2]
[372523619,1752670264069,-460.0,0.00022054,2]
[372523620,1752670264079,-1020.03,0.00022054,2]
[372523621,1752670264091,-724.18,0.00022054,2]
[372523622,1752670264101,-460.0,0.00022054,2]
[372523623,1752670264110,-650.51,0.00022054,2]
[372523624,1752670264120,-985.01,0.00022054,2]
[372523625,1752670264130,-511.5,0.00022054,2]
[372523626,1752670264140,-499.09,0.00022054,2]
[372523627,1752670264150,-460.0,0.00022054,2]
[372523628,1752670264160,-460.0,0.00022054,2]
[372523629,1752670264170,-495.35,0.00022054,2]
[372523630,1752670264180,-726.61,0.00022054,2]
[372523631,1752670264190,-488.61,0.00022054,2]
[372523632,1752670264200,-460.0,0.00022054,2]
[372523633,1752670264211,-460.0,0.00022054,2]
[372523634,1752670264221,-646.78,0.00022054,2]
[372523635,1752670264230,-460.0,0.00022054,2]
[372523636,1752670264240,-918.39,0.00022054,2]
[372523637,1752670264250,-460.0,0.00022054,2]
[372523638,1752670264261,-460.0,0.00022054,2]
[372523639,1752670264272,-2354.28,0.00022054,2]
[372523640,1752670264282,-460.0,0.00022054,2]
[372523641,1752670264292,-460.0,0.00022054,2]
[372523642,1752670264301,-460.0,0.00022054,2]
[372523643,1752670264312,-1973.46,0.00022054,2]
[372523644,1752670264321,-760.3,0.00022054,2]
[372523645,1752670264331,-559.2,0.00022054,2]
[372523646,1752670264341,-460.0,0.00022054,2]
[372523647,1752670264351,-636.36,0.00022054,2]
[372523648,1752670264361,-1106.55,0.00022054,2]
[372523649,1752670264370,-559.97,0.00022054,2]
[372523650,1752670264380,-460.0,0.00022054,2]
[372523651,1752670264390,-460.0,0.00022054,2]
[372523652,1752670264399,-151.0,0.00022054,7]
[372523653,1752670264409,-151.0,0.00022054,7]
[372523654,1752670264418,-151.0,0.00022054,7]
[372523655,1752670264428,-460.0,0.00022054,2]
[372523656,1752670264438,-1336.34,0.00022054,2]
[372523657,1752670264448,-857.77,0.00022054,2]
[372523658,1752670264459,-460.0,0.00022054,2]
[372523659,1752670264468,-555.78741204,0.00022054,2]
[372523660,1752670264479,-782.82,0.00022054,2]
[372523661,1752670264490,-460.0,0.00022054,2]
[372523662,1752670264500,-153.57698,0.00022054,7]
[372523663,1752670264511,-551.89,0.00022054,2]
[372523664,1752670264521,-460.0,0.00022054,2]
[372523665,1752670264531,-460.0,0.00022054,2]
[372523666,1752670264541,-556.02,0.00022054,2]
[372523667,1752670264552,-1925.01,0.00022054,2]
[372523668,1752670264562,-466.3,0.00022054,2]
[372523669,1752670264572,-3987.23,0.00022054,2]
[372523670,1752670264582,-713.43,0.00022054,2]
[372523671,1752670264593,-460.0,0.00022054,2]
[372523672,1752670264603,-460.0,0.00022054,2]
[372523673,1752670264613,-1197.98,0.00022054,2]
[372523674,1752670264622,-934.41,0.00022054,2]
[372523675,1752670264634,-460.0,0.00022054,2]
[372523676,1752670264644,-610.55,0.00022054,2]
[372523677,1752670264654,-460.0,0.00022054,2]
[372523678,1752670264664,-151.0,0.00022054,7]
[372523679,1752670264673,-151.0,0.00022054,7]
[372523680,1752670264683,-151.0,0.00022054,7]
[372523681,1752670264693,-733.63,0.00022054,2]
[372523682,1752670264703,-460.0,0.00022054,2]
[372523683,1752670264713,-595.64,0.00022054,2]
[372523684,1752670264723,-893.66,0.00022054,2]
[372523685,1752670264733,-460.0,0.00022054,2]
[372523686,1752670264744,-553.95,0.00022054,2]
[372523687,1752670264755,-460.0,0.00022054,2]
[372523688,1752670264766,-460.0,0.00022054,2]
[372523689,1752670264776,-460.0,0.00022054,2]
[372523690,1752670264787,-151.0,0.00022054,7]
[372523691,1752670264796,-460.0,0.00022054,2]
[372523692,1752670264806,-151.0,0.00022054,7]
[372523693,1752670264815,-151.0,0.00022054,7]
[372523694,1752670264825,-669.77,0.00022054,2]
[372523695,1752670264834,-501.28,0.00022054,2]
[372523696,1752670265160,-577.14,0.00022054,2]
[372523697,1752670265181,-460.0,0.00022054,2]
[372523698,1752670265191,-526.78,0.00022054,2]
[372523699,1752670265201,-893.48,0.00022054,2]
[372523700,1752670265211,-460.0,0.00022054,2]
[372523701,1752670265220,-460.0,0.00022054,2]
[372523702,1752670265230,-460.0,0.00022054,2]
[372523703,1752670265240,-460.0,0.00022054,2]
[372523704,1752670265250,-621.82,0.00022054,2]
[372523705,1752670265261,-460.0,0.00022054,2]
[372523706,1752670265271,-460.0,0.00022054,2]
[372523707,1752670265281,-460.0,0.00022054,2]
[372523708,1752670265291,-501.48,0.00022054,2]
[372523709,1752670265301,-460.0,0.00022054,2]
[372523710,1752670265310,-460.0,0.00022054,2]
[372523711,1752670265320,-501.44,0.00022054,2]
[372523712,1752670265330,-701.34,0.00022054,2]
[372523713,1752670265340,-663.67,0.00022054,2]
[372523714,1752670265349,-481.87,0.00022054,2]
[372523715,1752670265359,-1084.51,0.00022054,2]
[372523716,1752670265369,-460.0,0.00022054,2]
[372523717,1752670265379,-743.82,0.00022054,2]
[372523718,1752670265389,-460.0,0.00022054,2]
[372523719,1752670265399,-460.0,0.00022054,2]
[372523720,1752670265410,-753.37,0.00022054,2]
[372523721,1752670265420,-460.0,0.00022054,2]
[372523722,1752670265430,-460.0,0.00022054,2]
[372523723,1752670265439,-726.55,0.00022054,2]
[372523724,1752670265450,-460.0,0.00022054,2]
[372523725,1752670265459,-460.0,0.00022054,2]
[372523726,1752670265469,-626.39,0.00022054,2]
[372523727,1752670265479,-151.0,0.00022054,7]
[372523728,1752670265490,-151.0,0.00022054,7]
[372523729,1752670265499,-819.52,0.00022054,2]
[372523730,1752670265512,-151.0,0.00022054,7]
[372523731,1752670265522,-1002.3,0.00022054,2]
[372523732,1752670265532,-895.48,0.00022054,2]
[372523733,1752670265543,-460.0,0.00022054,2]
[372523734,1752670265556,-462.74039378,0.00022054,2]
[372523735,1752670265566,-460.0,0.00022054,2]
[372523736,1752670265576,-460.0,0.00022054,2]
[372523737,1752670265586,-3011.86,0.00022054,2]
[372523738,1752670265599,-460.0,0.00022054,2]
[372523739,1752670265608,-460.0,0.00022054,2]
[372523740,1752670265619,-943.52,0.00022054,2]
[372523741,1752670265629,-460.0,0.00022054,2]
[372523742,1752670265641,-522.46,0.00022054,2]
[372523743,1752670265650,-151.0,0.00022054,7]
[372523744,1752670265660,-460.0,0.00022054,2]
[372523745,1752670265670,-460.0,0.00022054,2]
[372523746,1752670265679,-1691.33,0.00022054,2]
[372523747,1752670265690,-748.17,0.00022054,2]
[372523748,1752670265699,-460.0,0.00022054,2]
[372523749,1752670265710,-460.0,0.00022054,2]
[372523750,1752670265720,-460.0,0.00022054,2]
[372523751,1752670265729,-460.0,0.00022054,2]
[372523752,1752670265739,-460.0,0.00022054,2]
[372523753,1752670265749,-460.0,0.00022054,2]
[372523754,1752670265761,-460.0,0.00022054,2]
[372523755,1752670265771,-661.27,0.00022054,2]
[372523756,1752670265781,-1926.7,0.00022054,2]
[372523757,1752670265790,-460.0,0.00022054,2]
[372523758,1752670265800,-460.0,0.00022054,2]
[372523759,1752670265810,-2066.84,0.00022054,2]
[372523760,1752670265820,-460.0,0.00022054,2]
[372523761,1752670265830,-460.0,0.00022054,2]
[372523762,1752670265840,-460.0,0.00022054,2]
[372523763,1752670265849,-460.0,0.00022054,2]
[372523764,1752670265859,-460.0,0.00022054,2]
[372523765,1752670265869,-460.0,0.00022054,2]
[372523766,1752670265878,-460.0,0.00022054,2]
[372523767,1752670265888,-460.0,0.00022054,2]
[372523768,1752670265898,-460.0,0.00022054,2]
[372523769,1752670265908,-460.0,0.00022054,2]
[372523770,1752670265918,-981.58,0.00022054,2]
[372523771,1752670265928,-460.0,0.00022054,2]
[372523772,1752670265939,-465.21,0.00022054,2]
[372523773,1752670265950,-1247.07,0.00022054,2]
[372523774,1752670265960,-460.0,0.00022054,2]
[372523775,1752670265970,-803.09,0.00022054,2]
[372523776,1752670265980,-1858.4,0.00022054,2]
[372523777,1752670265990,-460.0,0.00022054,2]
[372523778,1752670266000,-460.0,0.00022054,2]
[372523779,1752670266012,-691.47,0.00022054,2]
[372523780,1752670266022,-219.27827076,0.00022054,2]
[372523781,1752670266032,-1192.17,0.00022054,2]
[372523782,1752670266043,-460.0,0.00022054,2]
[372523783,1752670266052,-460.0,0.00022054,2]
[372523784,1752670266062,-2452.43,0.00022054,2]
[372523785,1752670266072,-628.49,0.00022054,2]
[372523786,1752670266083,-250.0,0.00022054,2]
[372523787,1752670266093,-2738.08,0.00022054,2]
[372523788,1752670266103,-1284.37,0.00022054,2]
[372523789,1752670266112,-1071.13,0.00022054,2]
[372523790,1752670266123,-460.0,0.00022054,2]
[372523791,1752670266133,-460.0,0.00022054,2]
[372523792,1752670266143,-477.15,0.00022054,2]
[372523793,1752670266153,-460.0,0.00022054,2]
[372523794,1752670266163,-1321.34,0.00022054,2]
[372523795,1752670266173,-935.46,0.00022054,2]
[372523796,1752670266183,-661.6,0.00022054,2]
[372523797,1752670266193,-575.09,0.00022054,2]
[372523798,1752670266203,-760.95,0.00022054,2]
[372523799,1752670266212,-460.0,0.00022054,2]
[372523800,1752670266222,-500.0,0.00022054,2]
[372523801,1752670266232,-460.0,0.00022054,2]
[372523802,1752670266242,-479.4,0.00022054,2]
[372523803,1752670266252,-749.94,0.00022054,2]
[372523804,1752670266265,-3690.12,0.00022054,2]
[372523805,1752670266275,-460.0,0.00022054,2]
[372523806,1752670266284,-490.24,0.00022054,2]
[372523807,1752670266295,-460.0,0.00022054,2]
[372523808,1752670266305,-664.57,0.00022054,2]
[372523809,1752670266315,-460.0,0.00022054,2]
[372523810,1752670266325,-753.89,0.00022054,2]
[372523811,1752670266335,-563.21,0.00022054,2]
[372523812,1752670266344,-460.0,0.00022054,2]
[372523813,1752670266354,-1393.87,0.00022054,2]
[372523814,1752670266367,-522.91,0.00022054,2]
[372523815,1752670266376,-460.0,0.00022054,2]
[372523816,1752670266386,-6029.37,0.00022054,2]
[372523817,1752670266396,-460.0,0.00022054,2]
[372523818,1752670266406,-460.0,0.00022054,2]
[372523819,1752670266416,-988.46,0.00022054,2]
[372523820,1752670266426,-460.0,0.00022054,2]
[372523821,1752670266436,-634.25,0.00022054,2]
[372523822,1752670266446,-460.0,0.00022054,2]
[372523823,1752670266455,-460.0,0.00022054,2]
[372523824,1752670266465,-761.45,0.00022054,2]
[372523825,1752670266474,-460.0,0.00022054,2]
[372523826,1752670266484,-1675.47,0.00022054,2]
[372523827,1752670266494,-533.64,0.00022054,2]
[372523828,1752670266504,-460.0,0.00022054,2]
[372523829,1752670266515,-2326.55,0.00022054,2]
[372523830,1752670266525,-1317.77,0.00022054,2]
[372523831,1752670266535,-460.0,0.00022054,2]
[372523832,1752670266545,-460.0,0.00022054,2]
[372523833,1752670266559,-460.0,0.00022054,2]
[372523834,1752670266569,-151.0,0.00022054,7]
[372523835,1752670266578,-151.0,0.00022054,7]
[372523836,1752670266588,-151.0,0.00022054,7]
[372523837,1752670266599,-1521.59,0.00022054,2]
[372523838,1752670266610,-460.0,0.00022054,2]
[372523839,1752670266620,-460.0,0.00022054,2]
[372523840,1752670266630,-151.0,0.00022054,7]
[372523841,1752670266640,-151.0,0.00022054,7]
[372523842,1752670266650,-1407.41,0.00022054,2]
[372523843,1752670266660,-602.85,0.00022054,2]
[372523844,1752670266670,-460.0,0.00022054,2]
[372523845,1752670266680,-151.0,0.00022054,7]
[372523846,1752670266690,-941.26,0.00022054,2]
[372523847,1752670266701,-460.0,0.00022054,2]
[372523848,1752670266710,-151.0,0.00022054,7]
[372523849,1752670266721,-460.0,0.00022054,2]
[372523850,1752670266731,-151.0,0.00022054,7]
[372523851,1752670266742,-460.0,0.00022054,2]
[372523852,1752670266752,-2259.11,0.00022054,2]
[372523853,1752670266763,-151.0,0.00022054,7]
[372523854,1752670266772,-480.35,0.00022054,2]
[372523855,1752670266783,-1059.18,0.00022054,2]
[372523856,1752670266792,-1765.51,0.00022054,2]
[372523857,1752670266803,-1847.26,0.00022054,2]
[372523858,1752670266812,-460.0,0.00022054,2]
[372523859,1752670266822,-460.0,0.00022054,2]
[372523860,1752670266831,-9466.14,0.00022054,2]
[372523861,1752670266841,-460.0,0.00022054,2]
[372523862,1752670266851,-151.0,0.00022054,7]
[372523863,1752670266860,-151.0,0.00022054,7]
[372523864,1752670266870,-460.0,0.00022054,2]
[372523865,1752670266880,-460.0,0.00022054,2]
[372523866,1752670266890,-460.0,0.00022054,2]
[372523867,1752670266899,-2536.7,0.00022054,2]
[372523868,1752670266909,-528.29,0.00022054,2]
[372523869,1752670266919,-1452.46,0.00022054,2]
[372523870,1752670266928,-460.0,0.00022054,2]
[372523871,1752670266938,-1741.19,0.00022054,2]
[372523872,1752670266948,-1564.37,0.00022054,2]
[372523873,1752670266959,-460.0,0.00022054,2]
[372523874,1752670266970,-525.53,0.00022054,2]
[372523875,1752670266980,-460.0,0.00022054,2]
[372523876,1752670266990,-1209.62,0.00022054,2]
[372523877,1752670266999,-674.49,0.00022054,2]
[372523878,1752670267010,-460.0,0.00022054,2]
[372523879,1752670267019,-2065.64,0.00022054,2]
[372523880,1752670267028,-460.0,0.00022054,2]
[372523881,1752670267037,-460.0,0.00022054,2]
[372523882,1752670267047,-1341.81,0.00022054,2]
[372523883,1752670267057,-2797.26,0.00022054,2]
[372523884,1752670267067,-460.0,0.00022054,2]
[372523885,1752670267077,-460.0,0.00022054,2]
[372523886,1752670267088,-460.0,0.00022054,2]
[372523887,1752670267098,-1074.57,0.00022054,2]
[372523888,1752670267107,-1067.8,0.00022054,2]
[372523889,1752670267117,-4196.73,0.00022054,2]
[372523890,1752670267127,-460.0,0.00022054,2]
[372523891,1752670267136,-460.0,0.00022054,2]
[372523892,1752670267146,-931.13,0.00022054,2]
[372523893,1752670267156,-460.0,0.00022054,2]
[372523894,1752670267166,-460.0,0.00022054,2]
[372523895,1752670267176,-511.29,0.00022054,2]
[372523896,1752670267186,-1653.46,0.00022054,2]
[372523897,1752670267196,-484.5,0.00022054,2]
[372523898,1752670267206,-460.0,0.00022054,2]
[372523899,1752670267215,-943.3,0.00022054,2]
[372523900,1752670267226,-869.11,0.00022054,2]
[372523901,1752670267235,-1119.73,0.00022054,2]
[372523902,1752670267245,-460.0,0.00022054,2]
[372523903,1752670267254,-571.45,0.00022054,2]
[372523904,1752670267266,-811.19,0.00022054,2]
[372523905,1752670267276,-460.0,0.00022054,2]
[372523906,1752670267285,-2127.33,0.00022054,2]
[372523907,1752670267295,-9515.96,0.00022054,2]
[372523908,1752670267305,-460.0,0.00022054,2]
[372523909,1752670267315,-1466.21,0.00022054,2]
[372523910,1752670267324,-639.83,0.00022054,2]
[372523911,1752670267334,-500.0,0.00022054,2]
[372523912,1752670267343,-8394.05,0.00022054,2]
[372523913,1752670267353,-429.2881226,0.00022054,2]
[372523914,1752670267362,-1849.72,0.00022054,2]
[372523915,1752670267372,-1097.61,0.00022054,2]
[372523916,1752670267382,-557.64,0.00022054,2]
[372523917,1752670267391,-460.0,0.00022054,2]
[372523918,1752670267401,-2673.54,0.00022054,2]
[372523919,1752670267411,-1787.99,0.00022054,2]
[372523920,1752670267421,-460.0,0.00022054,2]
[372523921,1752670267430,-643.09,0.00022054,2]
[372523922,1752670267440,-53474.75,0.00022054,2]
[372523923,1752670267450,-2348.03,0.00022054,2]
[372523924,1752670267459,-10354.56,0.00022054,2]
[372523925,1752670267469,-1031.31,0.00022054,2]
[372523926,1752670267479,-2323.28,0.00022054,2]
[372523927,1752670267488,-552.95,0.00022054,2]
[372523928,1752670267498,-460.0,0.00022054,2]
[372523929,1752670267508,-424.637825,0.00022054,7]
[372523930,1752670267519,-500.33,0.00022054,2]
[372523931,1752670267528,-424.637825,0.00022054,7]
[372523932,1752670267538,-424.637825,0.00022054,7]
[372523933,1752670267548,-460.0,0.00022054,2]
[372523934,1752670267562,-1295.72,0.00022054,2]
[372523935,1752670267572,-460.0,0.00022054,2]
[372523936,1752670267582,-424.637825,0.00022054,7]
[372523937,1752670267673,-460.0,0.00022054,2]
[372523938,1752670267683,-460.0,0.00022054,2]
[372523939,1752670267693,-1438.6,0.00022054,2]
[372523940,1752670267702,-151.0,0.00022054,7]
[372523941,1752670267712,-569.48,0.00022054,2]
[372523942,1752670267723,-460.0,0.00022054,2]
[372523943,1752670267731,-1070.41,0.00022054,2]
[372523944,1752670267741,-1650.96,0.00022054,2]
[372523945,1752670267751,-460.0,0.00022054,2]
[372523946,1752670267761,-5028.38,0.00022054,2]
[372523947,1752670267771,-424.637825,0.00022054,7]
[372523948,1752670267780,-460.0,0.00022054,2]
[372523949,1752670267790,-424.637825,0.00022054,7]
[372523950,1752670267799,-460.0,0.00022054,2]
[372523951,1752670267809,-2440.7,0.00022054,2]
[372523952,1752670267818,-642.29,0.00022054,2]
[372523953,1752670267827,-1787.7,0.00022054,2]
[372523954,1752670267836,-727.41,0.00022054,2]
[372523955,1752670267845,-460.0,0.00022054,2]
[372523956,1752670267855,-460.0,0.00022054,2]
[372523957,1752670267864,-3631.16,0.00022054,2]
[372523958,1752670267873,-460.0,0.00022054,2]
[372523959,1752670267883,-4359.46,0.00022054,2]
[372523960,1752670267892,-607.69,0.00022054,2]
[372523961,1752670267901,-460.0,0.00022054,2]
[372523962,1752670267911,-460.0,0.00022054,2]
[372523963,1752670267920,-151.0,0.00022054,7]
[372523964,1752670267929,-151.0,0.00022054,7]
[372523965,1752670267938,-2289.32,0.00022054,2]